{"text_format":"3","workbook":"xlsx","n_sheets":1,"sheets":["геология"],"not_rendered":{"external_links":1},"read":"whole","date_system":"1900"}

{"sheet":"геология","index":0,"n_rows":59,"n_cols":20,"rows_kept":59,"merged":[[0,0,0,19]]}
[" протокол по итогам муниципального этапа ВсОШ/РОШ по предмету\"Геология\" Актанышского муниципального района в 2021-2022 учебном году"]
["№ п/п","код ОО","Полное наименование образовательного учреждения (по уставу)","Фамилия","Имя","Отчество","Дата рождения","Пол","Участник с ОВЗ (да/нет)","Класс обучения","Класс участия","Балл","Добавлено баллов по итогам апелляций","Итоговый балл","Максимальный балл","Статус","Призёр республиканского этапа прошлого года","Фамилия, имя, отчество педагога, подготовившего участника олимпиады","Место работы учителя","Предмет"]
[1,null,"Муниципальное бюджетное общеобразовательное учреждение \"Актанышская средняя общеобразовательная школа №1\" Актанышского муниципального района Республики Татарстан",{"$f":"'[1]Sheet 1'!F2","v":"Кашбразиев"},{"$f":"'[1]Sheet 1'!G2","v":"Ленар"},{"$f":"'[1]Sheet 1'!H2","v":"Хамитович"},"2008-01-02",{"$f":"'[1]Sheet 1'!J2","v":"м"},{"$f":"'[1]Sheet 1'!K2","v":"нет"},{"$f":"'[1]Sheet 1'!L2","v":7},{"$f":"'[1]Sheet 1'!M2","v":8},71,null,71,100,"участник",null,"Галиева Зиля Ахатовна","Муниципальное бюджетное общеобразовательное учреждение \"Актанышская средняя общеобразовательная школа №1\" Актанышского муниципального района Республики Татарстан","Геология"]
[2,null,"Муниципальное бюджетное общеобразовательное учреждение \"Актанышская средняя общеобразовательная школа №1\" Актанышского муниципального района Республики Татарстан",{"$f":"'[1]Sheet 1'!F15","v":"Салихов"},"Рузаль",{"$f":"'[1]Sheet 1'!H15","v":"Ринатович"},"2008-09-22",{"$f":"'[1]Sheet 1'!J15","v":"м"},{"$f":"'[1]Sheet 1'!K15","v":"нет"},{"$f":"'[1]Sheet 1'!L15","v":7},{"$f":"'[1]Sheet 1'!M15","v":8},100,null,100,100,"победитель",null,"Галиева Зиля Ахатовна","Муниципальное бюджетное общеобразовательное учреждение \"Актанышская средняя общеобразовательная школа №1\" Актанышского муниципального района Республики Татарстан","Геология"]
[3,null,"Муниципальное бюджетное общеобразовательное учреждение \"Актанышская средняя общеобразовательная школа №1\" Актанышского муниципального района Республики Татарстан",{"$f":"'[1]Sheet 1'!F21","v":"Акрамова"},{"$f":"'[1]Sheet 1'!G21","v":"Лилия"},{"$f":"'[1]Sheet 1'!H21","v":"Фанисовна"},"2007-06-19",{"$f":"'[1]Sheet 1'!J21","v":"ж"},{"$f":"'[1]Sheet 1'!K21","v":"нет"},{"$f":"'[1]Sheet 1'!L21","v":8},9,72,null,72,100,"участник",null,"Галиева Зиля Ахатовна","Муниципальное бюджетное общеобразовательное учреждение \"Актанышская средняя общеобразовательная школа №1\" Актанышского муниципального района Республики Татарстан","Геология"]
[4,null,"Муниципальное бюджетное общеобразовательное учреждение \"Актанышская средняя общеобразовательная школа №1\" Актанышского муниципального района Республики Татарстан",{"$f":"'[1]Sheet 1'!F42","v":"Хайретдинова"},{"$f":"'[1]Sheet 1'!G42","v":"Гульназ"},{"$f":"'[1]Sheet 1'!H42","v":"Булатовна"},"2005-05-06",{"$f":"'[1]Sheet 1'!J42","v":"ж"},{"$f":"'[1]Sheet 1'!K42","v":"нет"},{"$f":"'[1]Sheet 1'!L42","v":10},{"$f":"'[1]Sheet 1'!M42","v":10},80,null,80,100,"победитель",null,"Галиева Зиля Ахатовна","Муниципальное бюджетное общеобразовательное учреждение \"Актанышская средняя общеобразовательная школа №1\" Актанышского муниципального района Республики Татарстан","Геология"]
[5,null,"Муниципальное бюджетное общеобразовательное учреждение «Тлякеевская основная общеобразовательная школа» Актанышского муниципального района Республики Татарстан","Галиева","Адиля","Расуловна","2008-01-15","ж","ж",8,8,92,null,76,100,"участник",null,"Газетдинов Ильнар Флюрович ","Муниципальное бюджетное общеобразовательное учреждение «Тлякеевская основная общеобразовательная школа» Актанышского муниципального района РТ","Геология"]
[6,null,"Муниципальное бюджетное образовательное учреждение \"Актанышская средняя общеобразовательная школа №2 с углубленным изучением отдельных предметов\"\" Актанышского муниципального района Республики Татарстан\"","Ахметова","Адиля","Адисовна","14.07.2007","Ж","нет",8,8,95,null,95,100,"призер",null,"Аминова ЛилияАйратовна","Муниципальное бюджетное образовательное учреждение \"Актанышская средняя общеобразовательная школа №2 с углубленным изучением отдельных предметов\"\" Актанышского муниципального района Республики Татарстан\"","Геология"]
[7,null,"Муниципальное бюджетное образовательное учреждение \"Актанышская средняя общеобразовательная школа №2 с углубленным изучением отдельных предметов\"\" Актанышского муниципального района Республики Татарстан\"","Гайнетдинова","Рузиля","Рушатовна","26.11.2006","Ж","нет",9,9,91,null,91,100,"призер",null,"Аминова ЛилияАйратовна","Муниципальное бюджетное образовательное учреждение \"Актанышская средняя общеобразовательная школа №2 с углубленным изучением отдельных предметов\"\" Актанышского муниципального района Республики Татарстан\"","Геология"]
[8,null,"Муниципальное бюджетное образовательное учреждение \"Актанышская средняя общеобразовательная школа №2 с углубленным изучением отдельных предметов\"\" Актанышского муниципального района Республики Татарстан\"","Хузин","Вильдан","Ниязович","04.04.2006","М","нет",9,9,84,null,84,100,"призер",null,"Аминова ЛилияАйратовна","Муниципальное бюджетное образовательное учреждение \"Актанышская средняя общеобразовательная школа №2 с углубленным изучением отдельных предметов\"\" Актанышского муниципального района Республики Татарстан\"","Геология"]
[9,null,"Муниципальное бюджетное образовательное учреждение \"Актанышская средняя общеобразовательная школа №2 с углубленным изучением отдельных предметов\"\" Актанышского муниципального района Республики Татарстан\"","Хамидуллина ","Лейсан","Ришатовна","2004-02-19","ж","нет",11,11,"57.1",null,"57.1",100,"победитель",null,"Аминова ЛилияАйратовна","Муниципальное бюджетное образовательное учреждение \"Актанышская средняя общеобразовательная школа №2 с углубленным изучением отдельных предметов\"\" Актанышского муниципального района Республики Татарстан\"","Геология"]
[10,null,"Государственное автономное общеобразовательное учреждение «Гуманитарная гимназия-интернат для ОД\" Актанышского муниципального района Республики Татарстан","Мухаметдинов","Радмир","Ильнарович","2009-07-21","м","нет",6,8,24,null,24,100,"участник",null,"Файзуллин Рустам Уелович","Государственное автономное общеобразовательное учреждение «Гуманитарная гимназия-интернат для ОД\" Актанышского муниципального района Республики Татарстан","Геология"]
[11,null,"Государственное автономное общеобразовательное учреждение «Гуманитарная гимназия-интернат для ОД\" Актанышского муниципального района Республики Татарстан","Хазиев","Румиль","Рустемович","2007-12-02","м","нет",7,8,45,null,45,100,"участник",null,"Файзуллин Рустам Уелович","Государственное автономное общеобразовательное учреждение «Гуманитарная гимназия-интернат для ОД\" Актанышского муниципального района Республики Татарстан","Геология"]
[12,null,"Государственное автономное общеобразовательное учреждение «Гуманитарная гимназия-интернат для ОД\" Актанышского муниципального района Республики Татарстан","Рахматулин","Артур","Ренатович","2008-06-01","м","нет",7,8,58,null,58,100,"участник",null,"Файзуллин Рустам Уелович","Государственное автономное общеобразовательное учреждение «Гуманитарная гимназия-интернат для ОД\" Актанышского муниципального района Республики Татарстан","Геология"]
[13,null,"Государственное автономное общеобразовательное учреждение «Гуманитарная гимназия-интернат для ОД\" Актанышского муниципального района Республики Татарстан","Султанов","Самат","Булатович","10.112007","м","нет",8,8,92,null,92,100,"призер",null,"Файзуллин Рустам Уелович","Государственное автономное общеобразовательное учреждение «Гуманитарная гимназия-интернат для ОД\" Актанышского муниципального района Республики Татарстан","Геология"]
[14,null,"Государственное автономное общеобразовательное учреждение «Гуманитарная гимназия-интернат для ОД\" Актанышского муниципального района Республики Татарстан","Чекалин","Гадель","Альбертович","2007-07-30","м","нет",8,8,92,null,92,100,"призер",null,"Файзуллин Рустам Уелович","Государственное автономное общеобразовательное учреждение «Гуманитарная гимназия-интернат для ОД\" Актанышского муниципального района Республики Татарстан","Геология"]
[15,null,"Государственное автономное общеобразовательное учреждение «Гуманитарная гимназия-интернат для ОД\" Актанышского муниципального района Республики Татарстан","Галиев","Ильназ","Илюсович","2006-10-15","м","нет",9,9,31,null,31,100,"участник",null,"Файзуллин Рустам Уелович","Государственное автономное общеобразовательное учреждение «Гуманитарная гимназия-интернат для ОД\" Актанышского муниципального района Республики Татарстан","Геология"]
[16,null,"Государственное автономное общеобразовательное учреждение «Гуманитарная гимназия-интернат для ОД\" Актанышского муниципального района Республики Татарстан","Ильдарханов","Азат","Рамилевич","2006-02-24","м","нет",10,10,46,null,46,100,"участник",null,"Файзуллин Рустам Уелович","Государственное автономное общеобразовательное учреждение «Гуманитарная гимназия-интернат для ОД\" Актанышского муниципального района Республики Татарстан","Геология"]
[17,null,"Муниципальное бюджетное образовательное учреждение \"Кировская средняя общеобразовательная школа\"","Сабирова ","Диляра","Ильнаровна","2007-02-19","ж",null,8,8,63,null,63,100,"участник",null,"Хафизова Резида Фердинантовна","Муниципальное бюджетное образовательное учреждение \"Кировская средняя общеобразовательная школа\"","Геология"]
[18,null,"Муниципальное бюджетное образовательное учреждение \"Кировская средняя общеобразовательная школа\"","Ибрагимова","Инзиля","Ильшатоана","2006-06-26","ж",null,9,9,94,null,94,100,"победитель",null,"Хафизова Резида Фердинантовна","Муниципальное бюджетное образовательное учреждение \"Кировская средняя общеобразовательная школа\"","Геология"]
[19,null,"Муниципальное бюджетное образовательное учреждение \"Кировская средняя общеобразовательная школа\"","Сагбетдинова","Розанна","Самантовна","2005-04-20","ж",null,10,10,69,null,69,100,"призер",null,"Хафизова Резида Фердинантовна","Муниципальное бюджетное образовательное учреждение \"Кировская средняя общеобразовательная школа\"","Геология"]
[22,null,"Муниципальное бюджетное образовательное учреждение \"Поисевская средняя общеобразовательная  школа\"\" Актанышского муниципального района Республики Татарстан\"","Салихов","Фирзар","Ильнарович",39034,"М","М",9,9,80,null,80,100,"призер",null,"Салихов Ильнар Шайхенурович","Муниципальное бюджетное образовательное учреждение \"Поисевская средняя общеобразовательная  школа\"\" Актанышского муниципального района Республики Татарстан\"","геология"]
[23,null,"Муниципальное бюджетное образовательное учреждение \"Поисевская средняя общеобразовательная  школа\"\" Актанышского муниципального района Республики Татарстан\"","Тимерова","Гульнур","Алмазовна","2007-09-19","Ж","Ж",8,8,75,null,75,100,"участник",null,"Салихов Ильнар Шайхенурович","Муниципальное бюджетное образовательное учреждение \"Поисевская средняя общеобразовательная  школа\"\" Актанышского муниципального района Республики Татарстан\"","геология"]
[25,null,"Муниципальное бюджетное общеобразовательное учреждение \"Татарско- Суксинская средняя общеобразовательная школа\" Актанышского муниципального района Республики Татарстан","Аюпов ","Джалиль","Рузильевич","2005-09-01","м",null,10,10,74,null,74,100,"призер",null,"Халикова Илиза Насиховна","Муниципальное бюджетное общеобразовательное учреждение \"Татарско- Суксинская средняя общеобразовательная школа\" Актанышского муниципального района Республики Татарстан","геология"]
[26,null,"Государственное бюджетное общеобразовательное учреждение «Актанышская кадетская школа-интернат имени Героя Советского Союза Хасана Заманова»","Шакиров ","Азамат","Фирдависович","2007-08-07","м",null,8,8,92,null,92,100,"призер",null,"Шакирова Роза Ришатовна","Государственное бюджетное общеобразовательное учреждение «Актанышская кадетская школа-интернат имени Героя Советского Союза Хасана Заманова»","геология"]
[27,null,"Государственное бюджетное общеобразовательное учреждение «Актанышская кадетская школа-интернат имени Героя Советского Союза Хасана Заманова»","Баев","Вадим","Искандерович","2007-11-15","м",null,9,9,59,null,59,100,"участник",null,"Шакирова Роза Ришатовна","Государственное бюджетное общеобразовательное учреждение «Актанышская кадетская школа-интернат имени Героя Советского Союза Хасана Заманова»","геология"]
[29,null,"Муниципальное бюджетное общеобразовательное учреждение «Новоалимовская основная общеобразовательная школа» Актанышского муниципального района Республики Татарстан","Локманов","Ильмар","Василович","2006-10-28","м",null,9,9,85,null,85,100,"призер",null,"Гильфанов Фидус Нарфисович","Муниципальное бюджетное общеобразовательное учреждение «Новоалимовская основная общеобразовательная школа» Актанышского муниципального района Республики Татарстан","геология"]
[30,null,"Муниципальное бюджетное общеобразовательное учреждение «Новоалимовская основная общеобразовательная школа» Актанышского муниципального района Республики Татарстан","Минахметов","Айрат","Мирдиянович","2007-07-06","м",null,8,8,87,null,87,100,"участник",null,"Гильфанов Фидус Нарфисович","Муниципальное бюджетное общеобразовательное учреждение «Новоалимовская основная общеобразовательная школа» Актанышского муниципального района Республики Татарстан","геология"]
[31,null,"Муниципальное бюджетное общеобразовательное учреждение «Байсаровская основная общеобразовательная школа» Актанышского муниципального района Республики Татарстан","Муфтиев","Наиль","Ирекович","2007-04-05","м",null,8,8,100,null,100,100,"победитель",null,"Амиров Рамил Хамитович","Муниципальное бюджетное общеобразовательное учреждение «Байсаровская основная общеобразовательная школа» Актанышского муниципального района Республики Татарстан","геология"]
[32,null,"Муниципальное бюджетное общеобразовательное учреждение «Байсаровская основная общеобразовательная школа» Актанышского муниципального района Республики Татарстан","Муфтиев","Фаиль","Ирекович","2007-04-05","м",null,8,8,95,null,95,100,"призер",null,"Амиров Рамил Хамитович","Муниципальное бюджетное общеобразовательное учреждение «Байсаровская основная общеобразовательная школа» Актанышского муниципального района Республики Татарстан","геология"]
[33,null,"Муниципальное бюджетное общеобразовательное учреждение \"Мари-Суксинская основная общеобразовательная школа\" Актанышского муниципального района Республики Татарстан","Галиева","Аннетта","Эдуардовна","2007-02-27","ж",null,9,9,89,null,89,100,"призер",null,"Миникаева Ирина Робинзоновна","Муниципальное бюджетное общеобразовательное учреждение \"Мари-Суксинская основная общеобразовательная школа\" Актанышского муниципального района Республики Татарстан","Геология"]
[34,null,"Муниципальное бюджетное общеобразовательное учреждение \"Старо-Курмашевская средняя общеобразовательная школа\" Актанышского муниципального района Республики Татарстан","Зарипова","Нурия","Марселевна","2007-05-22","ж",null,8,8,95,null,95,100,"призер",null,"Аскарова Рамила Ситдиковна","Муниципальное бюджетное общеобразовательное учреждение \"Старо-Курмашевская средняя общеобразовательная школа\" Актанышского муниципального района Республики Татарстан","Геология"]
[35,null,"Муниципальное бюджетное общеобразовательное учреждение \"Старо-Курмашевская средняя общеобразовательная школа\" Актанышского муниципального района Республики Татарстан","Каримов","Гадель","Ильясович","2007-01-29","м",null,9,9,49,null,49,100,"участник",null,"Аскарова Рамила Ситдиковна","Муниципальное бюджетное общеобразовательное учреждение \"Старо-Курмашевская средняя общеобразовательная школа\" Актанышского муниципального района Республики Татарстан","Геология"]
[36,null,"Муниципальное бюджетное общеобразовательное учреждение «Тат.Ямалинская основная общеобразовательная школа» Актанышского муниципального района Республики Татарстан","Ханов","Рузаль","Раифович","2007-03-19","М",null,8,8,26,null,26,100,"участник",null,"Рахимова Алмазия Таминдаровна","Муниципальное бюджетное общеобразовательное учреждение «Тат.Ямалинская основная общеобразовательная школа» Актанышского муниципального района Республики Татарстан","Геология"]
[37,null,"Муниципальное бюджетное общеобразовательное учреждение «Аккузовская основная общеобразовательная школа» Актанышского муниципального района Республики Татарстан","Шайдуллина ","Ильвина"," Ринатовна","2007-05-27","ж",null,8,8,95,null,95,100,"призер",null,"Гарипова Розалия Данисовна","Муниципальное бюджетное общеобразовательное учреждение «Аккузовская основная общеобразовательная школа» Актанышского муниципального района Республики Татарстан","Геология"]
[38,null,"Муниципальное бюджетное образовательное учреждение \"Поисевская средняя общеобразовательная  школа\"\" Актанышского муниципального района Республики Татарстан\"","Вахитова ","Аделя ","Равиловна","2006-09-09","ж",null,9,9,65,null,65,100,"участник",null,"Вагизова Алсу Мирзаяновна","Муниципальное бюджетное образовательное учреждение \"Поисевская средняя общеобразовательная  школа\"\" Актанышского муниципального района Республики Татарстан\"","Геология"]
[null,null,"Муниципальное бюджетное образовательное учреждение \"Поисевская средняя общеобразовательная  школа\"\" Актанышского муниципального района Республики Татарстан\"","Салихова ","Роза","Найловна","2004-08-24","ж",null,11,11,27,null,27,100,"участник",null,"Вагизова Алсу Мирзаяновна","Муниципальное бюджетное образовательное учреждение \"Поисевская средняя общеобразовательная  школа\"\" Актанышского муниципального района Республики Татарстан\"","Геология"]
[null,null,"Муниципальное бюджетное общеобразовательное учреждение \"Старо-Курмашевская средняя общеобразовательная школа\" Актанышского муниципального района Республики Татарстан","Марданова","Миляуша","Ильшатовна","2007-01-27","ж",null,8,8,66,null,66,100,"участник",null,"Аскарова Рамила Ситдиковна","Муниципальное бюджетное общеобразовательное учреждение \"Старо-Курмашевская средняя общеобразовательная школа\" Актанышского муниципального района Республики Татарстан","Геология"]
[null,null,"Муниципальное бюджетное образовательное учреждение \"Кировская средняя общеобразовательная школа\"","Габтрахманова","Айгуль","Радиковна","2007-04-16","ж",null,8,8,29,null,29,100,"участник",null,"Хафизова Резида Фердинантовна","Муниципальное бюджетное образовательное учреждение \"Кировская средняя общеобразовательная школа\"","Геология"]
[null,null,"Государственное автономное общеобразовательное учреждение «Гуманитарная гимназия-интернат для ОД\" Актанышского муниципального района Республики Татарстан","Мирзамахмудов","Ильяс","Альфирович","2008-01-27","м",null,7,8,34,null,34,100,"участник",null,"Файзуллин Рустам Уелович","Государственное автономное общеобразовательное учреждение «Гуманитарная гимназия-интернат для ОД\" Актанышского муниципального района Республики Татарстан","Геология"]
[null,null,"Муниципальное бюджетное образовательное учреждение \"Кировская средняя общеобразовательная школа\"","Хайдарова ","Лиана","Илдаровна","2005-07-02","ж",null,10,10,26,null,26,100,"участник",null,"Хафизова Резида Фердинантовна","Муниципальное бюджетное образовательное учреждение \"Кировская средняя общеобразовательная школа\"","Геология"]
[null,null,"Муниципальное бюджетное общеобразовательное учреждение «Аккузовская основная общеобразовательная школа» Актанышского муниципального района Республики Татарстан","Исламова","Залия","Ильдаровна","2007-06-13","ж",null,8,8,95,null,95,100,"призер",null,"Гарипова Розалия Данисовна","Муниципальное бюджетное общеобразовательное учреждение «Аккузовская основная общеобразовательная школа» Актанышского муниципального района Республики Татарстан","Геология"]
[null,null,"Муниципальное бюджетное общеобразовательное учреждение \"Тат. Суксинская средняя общеобразовательная школа\" Актанышского муниципального района Республики Татарстан","Мингазов","Динар","Илшатович","2007-07-23","м",null,8,8,79,null,79,100,"участник",null,"Гараев Наиль Назифович","Муниципальное бюджетное общеобразовательное учреждение \"Тат. Суксинская средняя общеобразовательная школа\" Актанышского муниципального района Республики Татарстан","Геология"]
[null,null,"Муниципальное бюджетное общеобразовательное учреждение \"Тат. Суксинская средняя общеобразовательная школа\" Актанышского муниципального района Республики Татарстан","Гильфанов","Динар","Гелюсович","012.07.2006","м",null,9,9,84,null,84,100,"призер",null,"Гараев Наиль Назифович","Муниципальное бюджетное общеобразовательное учреждение \"Тат. Суксинская средняя общеобразовательная школа\" Актанышского муниципального района Республики Татарстан","Геология"]
[null,null,"Муниципальное бюджетное общеобразовательное учреждение \"Старо-Курмашевская средняя общеобразовательная школа\" Актанышского муниципального района Республики Татарстан","Ганиев","Ильмаз","Радикович","2006-04-12","м",null,9,9,39,null,39,100,"участник",null,"Аскарова Рамила Ситдиковна","Муниципальное бюджетное общеобразовательное учреждение \"Старо-Курмашевская средняя общеобразовательная школа\" Актанышского муниципального района Республики Татарстан","Геология"]
[null,null,"Государственное автономное общеобразовательное учреждение «Гуманитарная гимназия-интернат для ОД\" Актанышского муниципального района Республики Татарстан","Сафин","Данияр","Ильгизович","2009-03-11","м",null,6,8,42,null,42,100,"участник",null,"Файзуллин Рустам Уелович","Государственное автономное общеобразовательное учреждение «Гуманитарная гимназия-интернат для ОД\" Актанышского муниципального района Республики Татарстан","Геология"]
[null,null,"Муниципальное бюджетное общеобразовательное учреждение «Аккузовская основная общеобразовательная школа» Актанышского муниципального района Республики Татарстан","Гайсин","Ригель ","Робертович","2007-12-11","м",null,8,8,95,null,95,100,"призер",null,"Гарипова Розалия Данисовна","Муниципальное бюджетное общеобразовательное учреждение «Аккузовская основная общеобразовательная школа» Актанышского муниципального района Республики Татарстан","Геология"]
{"$rows_empty":11}
[{"$nulls":6},"."]